[Event "Kuwait Championship Stage-I 2024"]
[Site "Qadsiya"]
[Date "2024.02.01"]
[Round "9.3"]
[White "Hussain, Hashem"]
[Black "Aldaihani, Turki"]
[Result "1/2-1/2"]
[ECO "B50"]
[WhiteElo "1642"]
[BlackElo "1475"]
[Annotator "NA"]
[PlyCount "105"]
[EventDate "2024.01.22"]
[EventType "swiss"]
[EventCountry "KUW"]
[SourceTitle "playchess.com"]
[Source "ChessBase"]
[SourceQuality "1"]
[TimeControl "5400+30"]

1. e4 {[%emt 0:01:44]} c5 {[%emt 0:04:20]} 2. Nf3 {[%emt 0:01:15]} d6 {[%emt 0:00:04]} 3. c3 {[%emt 0:00:16]} Nf6 {[%emt 0:00:16]} 4. Be2 {[%emt 0:00:17]} Nc6 {[%emt 0:00:31]} 5. d3 {[%emt 0:02:23]} g6 {[%emt 0:00:34]} 6. O-O {[%emt 0:01:03]} Bg7 {[%emt 0:00:15]} 7. h3 {[%emt 0:02:17]} O-O {[%emt 0:00:25]} 8. Be3 {[%emt 0:00:43]} e5 {[%emt 0:03:30]} 9. Nh2 {[%emt 0:06:30]} b5 {[%emt 0:00:49]} 10. Ng4 {[%emt 0:03:29]} Nxg4 {[%emt 0:01:38]} 11. Bxg4 {[%emt 0:00:37]} f5 {[%emt 0:00:22]} 12. exf5 {[%emt 0:01:05]} gxf5 {[%emt 0:00:25]} 13. Bf3 {[%emt 0:00:34]} Bd7 {[%emt 0:01:51]} 14. Bd5+ {[%emt 0:13:54]} Kh8 {[%emt 0:00:10]} 15. f4 {[%emt 1:01:53]} Qe7 {[%emt 1:22:50]} 16. Nd2 {[%emt 0:00:30]} Bh6 {[%emt 0:00:30]} 17. Qf3 {[%emt 0:00:30]} Rac8 {[%emt 0:00:30]} 18. Rae1 {[%emt 0:00:30]} Qg7 {[%emt 0:00:30]} 19. Qf2 {[%emt 0:00:30]} exf4 {[%emt 0:00:00]} 20. Bxf4 {[%emt 0:00:00]} Bxf4 {[%emt 0:00:00]} 21. Qxf4 {[%emt 0:00:00]} Ne5 {[%emt 0:00:00]} 22. Re3 {[%emt 0:00:00]} Rf6 {[%emt 0:00:00]} 23. Ne4 {[%emt 0:00:00]} Nxd3 {[%emt 0:00:00]} 24. Rxd3 {[%emt 0:00:00]} fxe4 {[%emt 0:00:00]} 25. Qxe4 {[%emt 0:00:00]} Re8 {[%emt 0:00:00]} 26. Qh4 {[%emt 0:00:00]} Rh6 {[%emt 0:00:00]} 27. Qg3 {[%emt 0:00:00]} Rg6 {[%emt 0:00:00]} 28. Qf2 {[%emt 0:00:00]} Qe5 {[%emt 0:00:00]} 29. Bf7 {[%emt 0:00:00]} Rf8 {[%emt 0:00:00]} 30. Rf3 {[%emt 0:00:00]} Rg7 {[%emt 0:00:00]} 31. Bd5 {[%emt 0:00:00]} Rxf3 {[%emt 0:00:00]} 32. Qxf3 {[%emt 0:00:00]} h6 {[%emt 0:00:00]} 33. Kh1 {[%emt 0:00:00]} Be6 {[%emt 0:00:00]} 34. Qf8+ {[%emt 0:00:00]} Kh7 {[%emt 0:00:00]} 35. Bxe6 {[%emt 0:00:00]} Qxe6 {[%emt 0:00:00]} 36. Qf5+ {[%emt 0:00:00]} Qxf5 {[%emt 0:00:00]} 37. Rxf5 {[%emt 0:00:00]} a5 {[%emt 0:00:00]} 38. Rd5 {[%emt 0:00:00]} Rd7 {[%emt 0:00:00]} 39. Kg1 {[%emt 0:00:00]} Kg6 {[%emt 0:00:00]} 40. Kf2 {[%emt 0:00:00]} Kf6 {[%emt 0:00:00]} 41. Kf3 {[%emt 0:00:00]} Rf7 {[%emt 0:00:00]} 42. Kg3 {[%emt 0:00:00]} Ke6 {[%emt 0:00:00]} 43. Rh5 {[%emt 0:00:00]} Rg7+ {[%emt 0:00:00]} 44. Kf3 {[%emt 0:00:00]} Rg6 {[%emt 0:00:00]} 45. g4 {[%emt 0:00:19]} d5 {[%emt 0:00:00]} 46. Ke3 {[%emt 0:00:40]} a4 {[%emt 0:00:00]} 47. b4 {[%emt 0:03:26]} Kd6 {[%emt 0:00:00]} 48. a3 {[%emt 0:02:04]} Re6+ {[%emt 0:00:00]} 49. Kd3 {[%emt 0:00:28]} Rf6 {[%emt 0:00:00]} 50. Ke3 {[%emt 0:00:20]} Re6+ {[%emt 0:00:00]} 51. Kd3 {[%emt 0:00:35]} cxb4 {[%emt 0:00:00]} 52. cxb4 {[%emt 0:00:17]} Rf6 {[%emt 0:00:00]} 53. Ke3 {[%emt 0:00:35]} 1/2-1/2

[Event "Kuwait Championship Stage-I 2024"]
[Site "Qadsiya"]
[Date "2024.02.01"]
[Round "9.4"]
[White "Alsaqer, Meshal"]
[Black "Alsayer, Bader"]
[Result "1-0"]
[ECO "D02"]
[WhiteElo "1753"]
[BlackElo "1260"]
[Annotator "NA"]
[PlyCount "105"]
[EventDate "2024.01.22"]
[EventType "swiss"]
[EventCountry "KUW"]
[SourceTitle "playchess.com"]
[Source "ChessBase"]
[SourceQuality "1"]
[TimeControl "5400+30"]

1. d4 {[%emt 0:03:19]} Nf6 {[%emt 0:03:41]} 2. Nf3 {[%emt 0:00:23]} d5 {[%emt 0:00:11]} 3. Bf4 {[%emt 0:00:57]} Nc6 {[%emt 0:01:30]} 4. e3 {[%emt 0:01:02]} Bf5 {[%emt 0:00:06]} 5. c3 {[%emt 0:00:33]} e6 {[%emt 0:00:29]} 6. Qb3 {[%emt 0:00:38]} Qd7 {[%emt 0:01:59]} 7. Bb5 {[%emt 0:01:43]} a6 {[%emt 0:00:29]} 8. Ne5 {[%emt 0:00:24]} Qc8 {[%emt 0:01:44]} 9. Bxc6+ {[%emt 0:01:37]} bxc6 {[%emt 0:00:21]} 10. Qa4 {[%emt 0:01:47]} Rb8 {[%emt 0:01:29]} 11. Qxc6+ {[%emt 0:01:24]} Nd7 {[%emt 0:00:28]} 12. b4 {[%emt 0:01:20]} Rb6 {[%emt 0:00:58]} 13. Qa4 {[%emt 0:01:25]} f6 {[%emt 0:00:20]} 14. Nxd7 {[%emt 0:02:13]} Qxd7 {[%emt 0:00:07]} 15. Qxd7+ {[%emt 0:00:31]} Kxd7 {[%emt 0:00:05]} 16. Nd2 {[%emt 0:01:18]} g5 {[%emt 0:01:23]} 17. Bg3 {[%emt 0:00:11]} h5 {[%emt 0:00:53]} 18. h4 {[%emt 0:01:22]} Bd6 {[%emt 0:00:29]} 19. Bxd6 {[%emt 0:00:16]} cxd6 {[%emt 0:00:14]} 20. hxg5 {[%emt 0:00:57]} fxg5 {[%emt 0:00:09]} 21. Nb3 {[%emt 0:04:40]} h4 {[%emt 0:02:56]} 22. Kd2 {[%emt 0:00:36]} Rbb8 {[%emt 0:02:45]} 23. Nc1 {[%emt 0:02:27]} g4 {[%emt 0:01:14]} 24. Ne2 {[%emt 0:00:24]} Be4 {[%emt 0:03:31]} 25. Rh2 {[%emt 0:01:10]} Rbf8 {[%emt 0:01:29]} 26. Nf4 {[%emt 0:07:35]} e5 {[%emt 0:00:15]} 27. f3 {[%emt 0:00:04]} exf4 {[%emt 0:01:35]} 28. fxe4 {[%emt 0:00:13]} f3 {[%emt 0:00:56]} 29. gxf3 {[%emt 0:00:15]} Rxf3 {[%emt 0:00:23]} 30. exd5 {[%emt 0:01:11]} h3 {[%emt 0:00:22]} 31. Ke2 {[%emt 0:01:05]} Rf7 {[%emt 0:01:21]} 32. Rg1 {[%emt 0:01:02]} Rh4 {[%emt 0:00:58]} 33. c4 {[%emt 0:01:38]} Ke7 {[%emt 0:05:57]} 34. c5 {[%emt 0:02:21]} Rf5 {[%emt 0:02:21]} 35. a4 {[%emt 0:05:40]} Rxd5 {[%emt 0:02:12]} 36. Kf2 {[%emt 0:02:15]} a5 {[%emt 0:13:49]} 37. Kg3 {[%emt 0:04:52]} Rh8 {[%emt 0:00:56]} 38. Rc1 {[%emt 0:02:05]} axb4 {[%emt 0:49:25]} 39. cxd6+ {[%emt 0:03:00]} Kxd6 {[%emt 0:00:00]} 40. Kxg4 {[%emt 0:00:18]} Rg8+ {[%emt 0:00:00]} 41. Kf4 {[%emt 0:04:09]} Rf8+ {[%emt 0:00:00]} 42. Ke4 {[%emt 0:00:28]} Rh5 {[%emt 0:00:00]} 43. Kd3 {[%emt 0:03:48]} Ra8 {[%emt 0:00:00]} 44. Rch1 {[%emt 0:01:20]} Rxa4 {[%emt 0:00:00]} 45. Rxh3 {[%emt 0:00:19]} Rxh3 {[%emt 0:00:00]} 46. Rxh3 {[%emt 0:00:11]} b3 {[%emt 0:00:00]} 47. Kc3 {[%emt 0:00:33]} Kd5 {[%emt 0:00:00]} 48. Rh5+ {[%emt 0:01:33]} Kd6 {[%emt 0:00:00]} 49. Kxb3 {[%emt 0:00:10]} Ra7 {[%emt 0:00:00]} 50. e4 {[%emt 0:01:34]} Re7 {[%emt 0:00:00]} 51. Rh6+ {[%emt 0:00:09]} Kd7 {[%emt 0:00:00]} 52. e5 {[%emt 0:00:09]} Re8 {[%emt 0:00:00]} 53. Kc4 {[%emt 0:00:14]} 1-0

[Event "Kuwait Championship Stage-I 2024"]
[Site "Qadsiya"]
[Date "2024.02.01"]
[Round "9.5"]
[White "Hashem, Khaled"]
[Black "Eidi, Eisa"]
[Result "1/2-1/2"]
[ECO "A30"]
[WhiteElo "1868"]
[BlackElo "1306"]
[Annotator "NA"]
[PlyCount "132"]
[EventDate "2024.01.22"]
[EventType "swiss"]
[EventCountry "KUW"]
[SourceTitle "playchess.com"]
[Source "ChessBase"]
[SourceQuality "1"]
[TimeControl "5400+30"]

1. Nf3 {[%emt 0:00:30]} Nf6 {[%emt 0:01:05]} 2. g3 {[%emt 0:00:05]} b6 {[%emt 0:01:07]} 3. Bg2 {[%emt 0:00:05]} Bb7 {[%emt 0:00:06]} 4. O-O {[%emt 0:00:58]} e6 {[%emt 0:00:22]} 5. c4 {[%emt 0:00:32]} c5 {[%emt 0:03:02]} 6. e3 {[%emt 0:00:55]} Be7 {[%emt 0:06:20]} 7. d4 {[%emt 0:00:25]} O-O {[%emt 0:00:36]} 8. Nc3 {[%emt 0:01:47]} d6 {[%emt 0:01:03]} 9. b3 {[%emt 0:01:53]} Nbd7 {[%emt 0:01:30]} 10. Bb2 {[%emt 0:00:24]} Re8 {[%emt 0:02:42]} 11. Qc2 {[%emt 0:10:22]} a6 {[%emt 0:06:07]} 12. Rfd1 {[%emt 0:00:23]} Qc7 {[%emt 0:00:49]} 13. Rac1 {[%emt 0:00:05]} Rac8 {[%emt 0:00:34]} 14. Qb1 {[%emt 0:00:23]} Bf8 {[%emt 0:06:09]} 15. a3 {[%emt 0:09:48]} e5 {[%emt 0:05:05]} 16. d5 {[%emt 0:00:52]} h6 {[%emt 0:02:29]} 17. e4 {[%emt 0:06:09]} Qb8 {[%emt 0:07:28]} 18. Qd3 {[%emt 0:05:44]} Be7 {[%emt 0:07:09]} 19. Nh4 {[%emt 0:01:32]} g6 {[%emt 0:03:15]} 20. Bh3 {[%emt 0:09:30]} Rcd8 {[%emt 0:03:20]} 21. Ng2 {[%emt 0:02:30]} Bc8 {[%emt 0:01:45]} 22. f4 {[%emt 0:08:07]} h5 {[%emt 0:11:12]} 23. Ne3 {[%emt 0:02:22]} Nf8 {[%emt 0:03:28]} 24. Bxc8 {[%emt 0:02:41]} Qxc8 {[%emt 0:00:11]} 25. Qe2 {[%emt 0:09:17]} N8h7 {[%emt 0:07:45]} 26. Rf1 {[%emt 0:06:41]} Rf8 {[%emt 0:06:23]} 27. Qf3 {[%emt 0:02:36]} Qd7 {[%emt 0:02:53]} 28. a4 {[%emt 0:03:22]} Qh3 {[%emt 0:03:04]} 29. Qg2 {[%emt 0:05:54]} Qd7 {[%emt 0:02:03]} 30. Rc2 {[%emt 0:01:48]} Ng4 {[%emt 0:01:07]} 31. Nxg4 {[%emt 0:01:08]} Qxg4 {[%emt 0:00:12]} 32. h3 {[%emt 0:02:09]} Qd7 {[%emt 0:00:13]} 33. f5 {[%emt 0:01:09]} g5 {[%emt 0:00:58]} 34. Qf3 {[%emt 0:00:54]} Nf6 {[%emt 0:00:29]} 35. Qe3 {[%emt 0:02:22]} Nh7 {[%emt 0:03:50]} 36. f6 {[%emt 0:00:46]} Bxf6 {[%emt 0:00:01]} 37. Rxf6 {[%emt 0:00:04]} Nxf6 {[%emt 0:00:21]} 38. Qxg5+ {[%emt 0:00:02]} Kh7 39. Qxf6 {[%emt 0:00:18]} Qxh3 {[%emt 0:00:05]} 40. Bc1 {[%emt 0:01:37]} Qg4 {[%emt 0:02:08]} 41. Qh6+ {[%emt 0:01:39]} Kg8 {[%emt 0:00:11]} 42. Qg5+ {[%emt 0:00:22]} Qxg5 {[%emt 0:00:21]} 43. Bxg5 {[%emt 0:00:02]} Rd7 {[%emt 0:00:22]} 44. Rf2 {[%emt 0:00:50]} Kh7 {[%emt 0:00:14]} 45. Bf6 {[%emt 0:00:44]} Kg6 {[%emt 0:00:35]} 46. Nd1 {[%emt 0:00:10]} b5 {[%emt 0:00:02]} 47. axb5 {[%emt 0:00:51]} axb5 {[%emt 0:00:01]} 48. Ne3 {[%emt 0:00:47]} bxc4 {[%emt 0:00:26]} 49. bxc4 {[%emt 0:00:18]} Rb8 {[%emt 0:00:15]} 50. Bh4 {[%emt 0:00:05]} Rdb7 {[%emt 0:01:07]} 51. Rf6+ {[%emt 0:00:15]} Kg7 {[%emt 0:00:10]} 52. Nf5+ {[%emt 0:00:13]} Kg8 {[%emt 0:00:12]} 53. Rxd6 {[%emt 0:01:51]} Rb1+ {[%emt 0:00:11]} 54. Kf2 {[%emt 0:00:10]} R1b2+ {[%emt 0:01:58]} 55. Kf3 {[%emt 0:00:35]} R8b3+ {[%emt 0:00:48]} 56. Ne3 {[%emt 0:00:01]} Rc2 {[%emt 0:01:25]} 57. Bg5 {[%emt 0:00:44]} Rxc4 {[%emt 0:00:24]} 58. Rh6 {[%emt 0:00:42]} Rcc3 {[%emt 0:00:32]} 59. Rd6 {[%emt 0:00:54]} c4 {[%emt 0:01:16]} 60. Rc6 {[%emt 0:00:03]} Rd3 {[%emt 0:00:15]} 61. Rxc4 {[%emt 0:00:37]} f6 {[%emt 0:00:02]} 62. Rc8+ {[%emt 0:00:54]} Kh7 {[%emt 0:00:05]} 63. Ke2 {[%emt 0:01:04]} fxg5 {[%emt 0:00:21]} 64. Rc7+ {[%emt 0:00:00]} Kg8 {[%emt 0:00:06]} 65. Nf5 {[%emt 0:00:00]} Rdc3 {[%emt 0:00:59]} 66. Rxc3 {[%emt 0:00:15]} Rxc3 {[%emt 0:00:08]} 1/2-1/2

[Event "Kuwait Championship Stage-I 2024"]
[Site "Qadsiya"]
[Date "2024.02.01"]
[Round "9.6"]
[White "Alruwayeh, Talal"]
[Black "Al Subaie, Nasser"]
[Result "0-1"]
[ECO "C44"]
[WhiteElo "1407"]
[BlackElo "1457"]
[Annotator "NA"]
[PlyCount "118"]
[EventDate "2024.01.22"]
[EventType "swiss"]
[EventCountry "KUW"]
[SourceTitle "playchess.com"]
[Source "ChessBase"]
[SourceQuality "1"]
[TimeControl "5400+30"]

1. e4 {[%emt 0:02:57]} e5 {[%emt 0:00:11]} 2. c4 {[%emt 0:00:24]} Nc6 {[%emt 0:00:36]} 3. Nf3 {[%emt 0:02:46]} Bc5 {[%emt 0:01:08]} 4. d3 {[%emt 0:00:35]} d6 {[%emt 0:00:18]} 5. h3 {[%emt 0:00:17]} Nge7 {[%emt 0:00:19]} 6. Nc3 {[%emt 0:02:29]} O-O {[%emt 0:03:00]} 7. Na4 {[%emt 0:01:02]} Bb4+ {[%emt 0:00:27]} 8. Bd2 {[%emt 0:00:14]} f5 {[%emt 0:01:06]} 9. Bxb4 {[%emt 0:00:50]} Nxb4 {[%emt 0:00:16]} 10. Qb3 {[%emt 0:00:46]} c5 {[%emt 0:02:02]} 11. a3 {[%emt 0:00:51]} Nbc6 {[%emt 0:02:11]} 12. Nc3 {[%emt 0:01:14]} Nd4 {[%emt 0:00:47]} 13. Qd1 {[%emt 0:00:50]} fxe4 {[%emt 0:00:45]} 14. Nxe4 {[%emt 0:00:26]} Nxf3+ {[%emt 0:00:49]} 15. gxf3 {[%emt 0:00:05]} Nf5 {[%emt 0:00:08]} 16. Nd2 {[%emt 0:04:22]} Nd4 {[%emt 0:10:25]} 17. Rg1 {[%emt 0:02:00]} Bd7 {[%emt 0:02:02]} 18. Rg3 {[%emt 0:00:30]} Bc6 {[%emt 0:00:29]} 19. Bg2 {[%emt 0:01:15]} Nf5 {[%emt 0:02:22]} 20. Rg4 {[%emt 0:00:56]} h5 {[%emt 0:00:41]} 21. Rg6 {[%emt 0:08:26]} Be8 {[%emt 0:06:57]} 22. Rg3 {[%emt 0:01:10]} Nxg3 {[%emt 0:03:46]} 23. fxg3 {[%emt 0:00:06]} Bc6 {[%emt 0:00:13]} 24. Ne4 {[%emt 0:00:26]} Bxe4 {[%emt 0:00:26]} 25. dxe4 {[%emt 0:00:12]} Qg5 {[%emt 0:00:20]} 26. Kf2 {[%emt 0:02:50]} h4 {[%emt 0:04:14]} 27. Qd5+ {[%emt 0:06:09]} Kh8 {[%emt 0:03:09]} 28. gxh4 {[%emt 0:00:28]} Qxh4+ {[%emt 0:00:20]} 29. Kg1 {[%emt 0:00:31]} Qe7 {[%emt 0:01:56]} 30. Rf1 {[%emt 0:01:20]} Rf4 {[%emt 0:05:50]} 31. Kh2 {[%emt 0:02:02]} Raf8 {[%emt 0:00:26]} 32. Rg1 {[%emt 0:00:25]} R8f6 {[%emt 0:01:51]} 33. Bh1 {[%emt 0:00:12]} Rh6 {[%emt 0:01:17]} 34. Rg3 {[%emt 0:00:59]} Rff6 {[%emt 0:01:36]} 35. b4 {[%emt 0:05:30]} Rfg6 {[%emt 0:01:26]} 36. Rg4 {[%emt 0:01:59]} Rxg4 {[%emt 0:00:09]} 37. fxg4 {[%emt 0:00:02]} Qg5 {[%emt 0:03:08]} 38. Bg2 {[%emt 0:51:54]} Qxg4 {[%emt 0:04:36]} 39. Qxb7 {[%emt 0:00:00]} Qf4+ {[%emt 0:00:58]} 40. Kh1 {[%emt 0:00:00]} Qc1+ {[%emt 0:03:34]} 41. Kh2 {[%emt 0:00:00]} Rg6 {[%emt 0:02:36]} 42. Qc8+ {[%emt 0:00:00]} Kh7 {[%emt 0:00:12]} 43. Qf5 {[%emt 0:00:00]} Qf4+ {[%emt 0:04:05]} 44. Kh1 {[%emt 0:03:00]} Qxf5 {[%emt 0:29:23]} 45. exf5 {[%emt 0:00:00]} Rg3 {[%emt 0:00:00]} 46. bxc5 {[%emt 0:01:00]} dxc5 {[%emt 0:01:00]} 47. a4 {[%emt 0:00:00]} Kh6 {[%emt 0:00:00]} 48. Kh2 {[%emt 0:01:00]} Rc3 {[%emt 0:01:00]} 49. Bd5 {[%emt 0:00:00]} Kg5 {[%emt 0:00:00]} 50. Be6 {[%emt 0:00:00]} Kh4 {[%emt 0:00:00]} 51. Kg2 {[%emt 0:00:00]} Rxh3 {[%emt 0:00:00]} 52. Kf2 {[%emt 0:00:00]} Ra3 {[%emt 0:00:00]} 53. Bd7 {[%emt 0:00:00]} Kg5 {[%emt 0:00:00]} 54. Ke2 {[%emt 0:00:00]} Kf4 {[%emt 0:00:00]} 55. Kd2 {[%emt 0:00:00]} e4 {[%emt 0:00:00]} 56. Kc2 {[%emt 0:00:00]} a5 {[%emt 0:00:00]} 57. Kb2 {[%emt 0:00:00]} Rd3 {[%emt 0:00:00]} 58. Be6 {[%emt 0:00:00]} e3 {[%emt 0:00:00]} 59. Kc2 {[%emt 0:00:00]} Rd4 {[%emt 0:00:00]} 0-1

[Event "Kuwait Championship Stage-I 2024"]
[Site "Qadsiya"]
[Date "2024.02.01"]
[Round "9.7"]
[White "Albaloul, Mohammad"]
[Black "Khalaf, Ali"]
[Result "1/2-1/2"]
[ECO "A39"]
[WhiteElo "1378"]
[BlackElo "1426"]
[Annotator "NA"]
[PlyCount "75"]
[EventDate "2024.01.22"]
[EventType "swiss"]
[EventCountry "KUW"]
[SourceTitle "playchess.com"]
[Source "ChessBase"]
[SourceQuality "1"]
[TimeControl "5400+30"]

1. Nf3 {[%emt 0:01:23]} Nf6 {[%emt 0:05:00]} 2. g3 {[%emt 0:00:13]} c5 {[%emt 0:01:14]} 3. c4 {[%emt 0:00:07]} g6 {[%emt 0:00:08]} 4. Nc3 {[%emt 0:00:07]} Nc6 {[%emt 0:00:29]} 5. Bg2 {[%emt 0:00:09]} Bg7 {[%emt 0:00:14]} 6. O-O {[%emt 0:00:09]} O-O {[%emt 0:00:32]} 7. d4 {[%emt 0:00:48]} cxd4 {[%emt 0:00:16]} 8. Nxd4 {[%emt 0:00:02]} Qb6 {[%emt 0:02:09]} 9. e3 {[%emt 0:02:23]} d6 {[%emt 0:04:08]} 10. h3 {[%emt 0:02:15]} Bd7 {[%emt 0:13:44]} 11. Rb1 {[%emt 0:04:16]} Ne5 {[%emt 0:11:54]} 12. b3 {[%emt 0:05:00]} Bc6 {[%emt 0:09:17]} 13. Nxc6 {[%emt 0:02:02]} bxc6 {[%emt 0:01:20]} 14. Bb2 {[%emt 0:01:49]} Ned7 {[%emt 0:07:16]} 15. Kh2 {[%emt 0:13:02]} Rac8 {[%emt 0:04:38]} 16. Ne2 {[%emt 0:08:10]} Rfd8 {[%emt 0:09:46]} 17. Nc3 {[%emt 0:09:02]} Nc5 {[%emt 0:02:20]} 18. Qe2 {[%emt 0:06:41]} d5 {[%emt 0:04:32]} 19. cxd5 {[%emt 0:01:05]} cxd5 {[%emt 0:00:07]} 20. Rfd1 {[%emt 0:05:33]} e6 {[%emt 0:01:51]} 21. Rbc1 {[%emt 0:01:19]} a5 {[%emt 0:09:05]} 22. Ba3 {[%emt 0:07:44]} Nce4 {[%emt 0:03:31]} 23. Nxe4 {[%emt 0:02:12]} Nxe4 {[%emt 0:02:02]} 24. Bxe4 {[%emt 0:00:39]} dxe4 {[%emt 0:00:05]} 25. Rxd8+ {[%emt 0:02:45]} Rxd8 {[%emt 0:01:09]} 26. Qc2 {[%emt 0:01:32]} Qb7 {[%emt 0:02:29]} 27. Bb2 {[%emt 0:05:38]} Bxb2 {[%emt 0:00:51]} 28. Qxb2 {[%emt 0:00:07]} Qd5 {[%emt 0:00:03]} 29. Kg2 {[%emt 0:02:33]} Qd2 {[%emt 0:02:44]} 30. Qxd2 {[%emt 0:03:38]} Rxd2 {[%emt 0:00:01]} 31. Rc8+ {[%emt 0:01:32]} Kg7 {[%emt 0:00:04]} 32. a4 {[%emt 0:00:24]} Rb2 {[%emt 0:01:45]} 33. Ra8 {[%emt 0:00:19]} Rxb3 {[%emt 0:00:10]} 34. Rxa5 {[%emt 0:00:11]} Ra3 {[%emt 0:00:19]} 35. Ra8 {[%emt 0:00:08]} Kf6 {[%emt 0:00:32]} 36. a5 {[%emt 0:00:10]} h5 {[%emt 0:00:21]} 37. a6 {[%emt 0:00:14]} Ra1 {[%emt 0:00:32]} 38. a7 {[%emt 0:14:09]} 1/2-1/2

[Event "Kuwait Championship Stage-I 2024"]
[Site "Qadsiya"]
[Date "2024.02.01"]
[Round "9.8"]
[White "Alenezi, Hamad"]
[Black "Alrefae, Ahmad"]
[Result "0-1"]
[ECO "A00"]
[WhiteElo "1419"]
[BlackElo "1338"]
[Annotator "NA"]
[PlyCount "74"]
[EventDate "2024.01.22"]
[EventType "swiss"]
[EventCountry "KUW"]
[SourceTitle "playchess.com"]
[Source "ChessBase"]
[SourceQuality "1"]
[TimeControl "5400+30"]

1. Nc3 {[%emt 0:06:30]} f5 {[%emt 0:02:01]} 2. e4 {[%emt 0:00:55]} fxe4 {[%emt 0:00:28]} 3. Nxe4 {[%emt 0:01:13]} d5 {[%emt 0:00:21]} 4. Ng3 {[%emt 0:01:19]} Nf6 {[%emt 0:01:36]} 5. d4 {[%emt 0:00:22]} Be6 {[%emt 0:06:19]} 6. Nf3 {[%emt 0:00:49]} g6 {[%emt 0:02:58]} 7. Bd3 {[%emt 0:00:50]} Qd6 {[%emt 0:01:12]} 8. Bd2 {[%emt 0:05:53]} Nbd7 {[%emt 0:02:39]} 9. Qe2 {[%emt 0:00:32]} Bf7 {[%emt 0:00:30]} 10. Ne5 {[%emt 0:01:26]} Be6 {[%emt 0:08:19]} 11. a3 {[%emt 0:00:52]} c5 {[%emt 0:02:13]} 12. c3 {[%emt 0:02:39]} Bg7 {[%emt 0:08:50]} 13. h3 {[%emt 0:03:04]} Qb6 {[%emt 0:09:01]} 14. Be3 {[%emt 0:04:50]} Nxe5 {[%emt 0:05:34]} 15. dxe5 {[%emt 0:02:31]} Nd7 {[%emt 0:00:26]} 16. f4 {[%emt 0:02:01]} Qc7 {[%emt 0:03:33]} 17. O-O {[%emt 0:03:04]} O-O-O {[%emt 0:05:20]} 18. a4 {[%emt 0:01:57]} Rdf8 {[%emt 0:01:33]} 19. a5 {[%emt 0:00:34]} h5 {[%emt 0:08:01]} 20. Bxg6 {[%emt 0:03:18]} Bxh3 {[%emt 0:08:20]} 21. gxh3 {[%emt 0:01:15]} h4 {[%emt 0:04:50]} 22. Nf5 {[%emt 0:04:43]} e6 {[%emt 0:06:23]} 23. Nd6+ {[%emt 0:51:23]} Kb8 {[%emt 0:00:29]} 24. b4 {[%emt 0:00:00]} Rhg8 {[%emt 0:03:54]} 25. Kh2 {[%emt 0:00:00]} Nxe5 {[%emt 0:00:44]} 26. bxc5 {[%emt 0:00:00]} Nxg6 {[%emt 0:00:30]} 27. Rab1 {[%emt 0:00:00]} Ka8 {[%emt 0:03:36]} 28. Rxb7 {[%emt 0:00:00]} Qc6 {[%emt 0:00:25]} 29. Rg1 {[%emt 0:00:00]} Bxc3 {[%emt 0:01:56]} 30. Qc2 {[%emt 0:00:00]} d4 {[%emt 0:01:56]} 31. Bc1 {[%emt 0:00:00]} Nxf4 {[%emt 0:00:28]} 32. Rxg8 {[%emt 0:00:00]} Rxg8 {[%emt 0:00:06]} 33. Bxf4 {[%emt 0:00:00]} d3 {[%emt 0:00:28]} 34. Qf2 {[%emt 0:00:00]} Be1 {[%emt 0:00:21]} 35. Qf1 {[%emt 0:00:00]} d2 {[%emt 0:00:22]} 36. Bxd2 {[%emt 0:00:16]} Bg3+ {[%emt 0:02:48]} 37. Kg1 {[%emt 0:00:18]} Bxd6+ {[%emt 0:00:00]} 0-1

[Event "Kuwait Championship Stage-I 2024"]
[Site "Qadsiya"]
[Date "2024.02.01"]
[Round "9.9"]
[White "Almohammad, Hamad"]
[Black "Alansari, Omar"]
[Result "0-1"]
[ECO "D02"]
[WhiteElo "1296"]
[BlackElo "1262"]
[Annotator "NA"]
[PlyCount "102"]
[EventDate "2024.01.22"]
[EventType "swiss"]
[EventCountry "KUW"]
[SourceTitle "playchess.com"]
[Source "ChessBase"]
[SourceQuality "1"]
[TimeControl "5400+30"]

1. d4 {[%emt 0:11:39]} d5 {[%emt 0:00:11]} 2. Bf4 {[%emt 0:00:06]} e6 {[%emt 0:00:05]} 3. e3 {[%emt 0:00:09]} c5 {[%emt 0:00:06]} 4. c3 {[%emt 0:00:22]} Nc6 {[%emt 0:00:18]} 5. Nf3 {[%emt 0:00:26]} Nf6 {[%emt 0:00:20]} 6. Bd3 {[%emt 0:00:40]} Bd6 {[%emt 0:01:23]} 7. Ne5 {[%emt 0:03:50]} Qc7 {[%emt 0:01:07]} 8. Nxc6 {[%emt 0:02:14]} Bxf4 {[%emt 0:01:13]} 9. exf4 {[%emt 0:00:51]} bxc6 {[%emt 0:03:51]} 10. g3 {[%emt 0:06:01]} cxd4 {[%emt 0:02:24]} 11. cxd4 {[%emt 0:00:03]} Qb6 {[%emt 0:01:34]} 12. Qa4 {[%emt 0:02:34]} O-O {[%emt 0:03:58]} 13. b3 {[%emt 0:03:12]} c5 {[%emt 0:05:08]} 14. dxc5 {[%emt 0:01:47]} Qxc5 {[%emt 0:00:09]} 15. O-O {[%emt 0:04:19]} Bd7 {[%emt 0:03:39]} 16. Qa6 {[%emt 0:00:32]} Rfb8 {[%emt 0:05:58]} 17. Be2 {[%emt 0:08:21]} Rb6 {[%emt 0:05:43]} 18. Qd3 {[%emt 0:00:35]} Bb5 {[%emt 0:01:53]} 19. Qf3 {[%emt 0:09:07]} Bxe2 {[%emt 0:08:00]} 20. Qxe2 {[%emt 0:00:05]} Rc6 {[%emt 0:00:25]} 21. Nd2 {[%emt 0:01:07]} Rac8 {[%emt 0:00:38]} 22. Rac1 {[%emt 0:05:26]} Qa5 {[%emt 0:05:18]} 23. Rxc6 {[%emt 0:00:47]} Rxc6 {[%emt 0:00:07]} 24. Nf3 {[%emt 0:00:31]} h6 {[%emt 0:04:46]} 25. Nd4 {[%emt 0:06:03]} Rc8 {[%emt 0:08:06]} 26. Nxe6 {[%emt 0:00:50]} Re8 {[%emt 0:01:42]} 27. f5 {[%emt 0:03:04]} fxe6 {[%emt 0:00:16]} 28. fxe6 {[%emt 0:00:03]} Qb6 {[%emt 0:03:20]} 29. Re1 {[%emt 0:00:56]} Ne4 {[%emt 0:00:31]} 30. Qe3 {[%emt 0:07:58]} Qxe3 {[%emt 0:01:48]} 31. Rxe3 {[%emt 0:00:02]} Rxe6 {[%emt 0:00:19]} 32. f3 {[%emt 0:00:44]} Ng5 {[%emt 0:00:08]} 33. Rxe6 {[%emt 0:00:39]} Nxe6 {[%emt 0:00:03]} 34. Kf2 {[%emt 0:00:07]} Kf7 {[%emt 0:00:32]} 35. Ke3 {[%emt 0:00:02]} Kf6 {[%emt 0:01:33]} 36. b4 {[%emt 0:00:31]} g5 {[%emt 0:01:14]} 37. a4 {[%emt 0:00:37]} Ke5 {[%emt 0:00:21]} 38. a5 {[%emt 0:01:34]} a6 {[%emt 0:04:54]} 39. h4 {[%emt 0:00:26]} d4+ {[%emt 0:00:28]} 40. Kd3 {[%emt 0:00:47]} Kd5 {[%emt 0:00:38]} 41. hxg5 {[%emt 0:00:40]} hxg5 {[%emt 0:00:32]} 42. b5 {[%emt 0:02:42]} axb5 {[%emt 0:00:17]} 43. a6 {[%emt 0:00:02]} Nc5+ {[%emt 0:00:52]} 44. Ke2 {[%emt 0:00:54]} Nxa6 {[%emt 0:00:10]} 45. f4 {[%emt 0:00:02]} gxf4 {[%emt 0:00:18]} 46. gxf4 {[%emt 0:00:07]} b4 {[%emt 0:00:23]} 47. f5 {[%emt 0:00:15]} Nc5 {[%emt 0:00:49]} 48. f6 {[%emt 0:00:04]} Ne6 {[%emt 0:00:10]} 49. Kd3 {[%emt 0:01:07]} b3 {[%emt 0:00:26]} 50. f7 {[%emt 0:00:17]} Kc5 {[%emt 0:00:29]} 51. Ke4 {[%emt 0:00:43]} Ng5+ {[%emt 0:27:27]} 0-1